[Event "*** Titled Tuesday Blitz"]
[Site "Chess.com"]
[Date "2020.04.28"]
[Round "1"]
[White "dpopadic"]
[Black "Taron_Shagbazyan"]
[Result "1-0"]
[WhiteElo "2325"]
[BlackElo "2619"]
[TimeControl "180+1"]
[EndTime "10:06:35 PDT"]
[Termination "dpopadic won by resignation"]

1. e4 {[%clk 0:03:00.9]} 1... e5 {[%clk 0:02:58.1]} 2. Nf3 {[%clk 0:03:00]} 2...
Nc6 {[%clk 0:02:58.7]} 3. Bb5 {[%clk 0:02:59.4]} 3... a6 {[%clk 0:02:58.5]} 4.
Ba4 {[%clk 0:02:59.4]} 4... Nf6 {[%clk 0:02:57.7]} 5. O-O {[%clk 0:02:59.3]}
5... b5 {[%clk 0:02:54.6]} 6. Bb3 {[%clk 0:02:58.6]} 6... Bb7 {[%clk 0:02:55.5]}
7. Re1 {[%clk 0:02:56]} 7... Be7 {[%clk 0:02:55.7]} 8. d3 {[%clk 0:02:54.7]}
8... O-O {[%clk 0:02:55.7]} 9. a4 {[%clk 0:02:51.4]} 9... d6 {[%clk 0:02:54.1]}
10. c3 {[%clk 0:02:50.8]} 10... Nd7 {[%clk 0:02:51.5]} 11. Nbd2 {[%clk 0:02:50]}
11... Nc5 {[%clk 0:02:49.3]} 12. Bc2 {[%clk 0:02:50.2]} 12... Nxa4 {[%clk
0:02:49.5]} 13. Bxa4 {[%clk 0:02:49.7]} 13... bxa4 {[%clk 0:02:50.4]} 14. Rxa4
{[%clk 0:02:48.8]} 14... f5 {[%clk 0:02:48.6]} 15. Qb3+ {[%clk 0:02:35.5]} 15...
Kh8 {[%clk 0:02:48.3]} 16. Qxb7 {[%clk 0:02:35.2]} 16... Qd7 {[%clk 0:02:48.8]}
17. Rc4 {[%clk 0:02:13.2]} 17... Nd8 {[%clk 0:02:41]} 18. Qxc7 {[%clk
0:02:08.2]} 18... Qe8 {[%clk 0:02:41]} 19. Qa5 {[%clk 0:02:03.3]} 19... fxe4
{[%clk 0:02:40.8]} 20. dxe4 {[%clk 0:02:01.3]} 20... Ne6 {[%clk 0:02:41.1]} 21.
Qa4 {[%clk 0:01:56.1]} 21... Qg6 {[%clk 0:02:37.6]} 22. Kh1 {[%clk 0:01:38.2]}
22... Nf4 {[%clk 0:02:32.8]} 23. Rg1 {[%clk 0:01:37.2]} 23... Ne2 {[%clk
0:02:13.8]} 24. Qd1 {[%clk 0:01:33.5]} 24... Nxg1 {[%clk 0:02:13.1]} 25. Kxg1
{[%clk 0:01:28]} 25... Rf7 {[%clk 0:02:08.4]} 26. Ra4 {[%clk 0:01:22.5]} 26...
Raf8 {[%clk 0:01:52]} 27. Qe2 {[%clk 0:01:22]} 27... d5 {[%clk 0:01:49.5]} 28.
Rxa6 {[%clk 0:01:18.1]} 28... Qh5 {[%clk 0:01:45.5]} 29. exd5 {[%clk 0:01:10.3]}
29... Rf4 {[%clk 0:01:43.8]} 30. Nf1 {[%clk 0:01:00.6]} 30... Rg4 {[%clk
0:01:43.1]} 31. Ng3 {[%clk 0:00:56.7]} 31... Qg6 {[%clk 0:01:29.3]} 32. Nxe5
{[%clk 0:00:47.3]} 32... Qb1 {[%clk 0:01:21.3]} 33. Nxg4 {[%clk 0:00:44.9]}
33... Qxc1+ {[%clk 0:01:21.2]} 34. Qf1 {[%clk 0:00:45]} 34... Qxb2 {[%clk
0:01:21.4]} 35. d6 {[%clk 0:00:42.3]} 35... Bg5 {[%clk 0:01:14.3]} 36. d7 {[%clk
0:00:36.3]} 36... Qxc3 {[%clk 0:01:07.8]} 37. Rd6 {[%clk 0:00:30.6]} 37... Qc7
{[%clk 0:01:04]} 38. Qd1 {[%clk 0:00:28.4]} 38... Be7 {[%clk 0:01:00.2]} 39. Rd3
{[%clk 0:00:26.6]} 39... Bd8 {[%clk 0:00:55.7]} 40. Ne4 {[%clk 0:00:24.8]} 40...
Qf4 {[%clk 0:00:55.1]} 41. Rf3 {[%clk 0:00:21.9]} 1-0

[Event "*** Titled Tuesday Blitz"]
[Site "Chess.com"]
[Date "2020.04.28"]
[Round "1"]
[White "Firehand33"]
[Black "LimeInTheCoconut"]
[Result "1-0"]
[WhiteElo "2754"]
[BlackElo "2399"]
[TimeControl "180+1"]
[EndTime "10:06:36 PDT"]
[Termination "Firehand33 won by resignation"]

1. g3 {[%clk 0:02:58.6]} 1... d5 {[%clk 0:02:50.4]} 2. Bg2 {[%clk 0:02:59.5]}
2... g6 {[%clk 0:02:47.6]} 3. c4 {[%clk 0:02:57.8]} 3... dxc4 {[%clk 0:02:44.1]}
4. Qa4+ {[%clk 0:02:54.2]} 4... c6 {[%clk 0:02:33.4]} 5. Qxc4 {[%clk 0:02:54.2]}
5... Bg7 {[%clk 0:02:31.7]} 6. Nf3 {[%clk 0:02:54.2]} 6... Nf6 {[%clk
0:02:31.4]} 7. O-O {[%clk 0:02:54]} 7... O-O {[%clk 0:02:31.2]} 8. d3 {[%clk
0:02:54.3]} 8... Nbd7 {[%clk 0:01:44.9]} 9. Qc2 {[%clk 0:02:53.1]} 9... e5
{[%clk 0:01:39.4]} 10. Nbd2 {[%clk 0:02:52.4]} 10... Re8 {[%clk 0:01:30.7]} 11.
Rb1 {[%clk 0:02:49.6]} 11... a5 {[%clk 0:01:29.8]} 12. b3 {[%clk 0:02:49.5]}
12... Qe7 {[%clk 0:01:20.7]} 13. e4 {[%clk 0:02:39.6]} 13... Qc5 {[%clk
0:01:09.8]} 14. Nc4 {[%clk 0:02:36.9]} 14... b5 {[%clk 0:01:00.1]} 15. Ba3
{[%clk 0:02:33.9]} 15... b4 {[%clk 0:01:00.1]} 16. Bb2 {[%clk 0:02:32.5]} 16...
Ba6 {[%clk 0:00:54.1]} 17. Rbc1 {[%clk 0:02:20.1]} 17... Bxc4 {[%clk 0:00:44.5]}
18. Qxc4 {[%clk 0:02:19.6]} 18... Qxc4 {[%clk 0:00:42.7]} 19. Rxc4 {[%clk
0:02:20.5]} 19... c5 {[%clk 0:00:41.5]} 20. a4 {[%clk 0:01:51.4]} 20... bxa3
{[%clk 0:00:40.5]} 21. Bxa3 {[%clk 0:01:51.4]} 21... Reb8 {[%clk 0:00:40.2]} 22.
Nd2 {[%clk 0:01:48.2]} 22... Bf8 {[%clk 0:00:34.1]} 23. Rc3 {[%clk 0:01:40.5]}
23... Rb5 {[%clk 0:00:27.1]} 24. Nc4 {[%clk 0:01:38.9]} 24... Rab8 {[%clk
0:00:26.8]} 25. Nd2 {[%clk 0:01:21]} 25... Bd6 {[%clk 0:00:22.6]} 26. f4 {[%clk
0:01:20.1]} 26... h6 {[%clk 0:00:18]} 27. Nc4 {[%clk 0:01:15.3]} 27... Bc7
{[%clk 0:00:08.2]} 28. fxe5 {[%clk 0:01:15.1]} 28... Ng4 {[%clk 0:00:08.5]} 29.
e6 {[%clk 0:01:05.9]} 29... fxe6 {[%clk 0:00:08.7]} 30. Bh3 {[%clk 0:01:06.1]}
30... h5 {[%clk 0:00:06.3]} 31. Nd2 {[%clk 0:00:58.1]} 31... Nde5 {[%clk
0:00:06.3]} 32. d4 {[%clk 0:00:49]} 32... Bd6 {[%clk 0:00:01.9]} 33. dxe5 {[%clk
0:00:47.7]} 1-0

[Event "*** Titled Tuesday Blitz"]
[Site "Chess.com"]
[Date "2020.04.28"]
[Round "1"]
[White "belisarius64"]
[Black "BikingBrian"]
[Result "1-0"]
[WhiteElo "2623"]
[BlackElo "2298"]
[TimeControl "180+1"]
[EndTime "10:06:37 PDT"]
[Termination "belisarius64 won by resignation"]

1. e4 {[%clk 0:03:00.8]} 1... c5 {[%clk 0:02:59.5]} 2. Nf3 {[%clk 0:03:00.3]}
2... g6 {[%clk 0:02:59.8]} 3. c3 {[%clk 0:02:47.4]} 3... Bg7 {[%clk 0:02:59.1]}
4. d4 {[%clk 0:02:46.7]} 4... cxd4 {[%clk 0:03:00]} 5. cxd4 {[%clk 0:02:47.6]}
5... d5 {[%clk 0:03:00.1]} 6. e5 {[%clk 0:02:48.3]} 6... Bg4 {[%clk 0:02:59.9]}
7. Bb5+ {[%clk 0:02:46.1]} 7... Nd7 {[%clk 0:02:57.6]} 8. h3 {[%clk 0:02:40.4]}
8... Bxf3 {[%clk 0:02:57.1]} 9. Qxf3 {[%clk 0:02:41.3]} 9... e6 {[%clk
0:02:57.2]} 10. O-O {[%clk 0:02:41.3]} 10... a6 {[%clk 0:02:55.5]} 11. Be2
{[%clk 0:02:34.6]} 11... Ne7 {[%clk 0:02:54.8]} 12. Nc3 {[%clk 0:02:34.2]} 12...
Qb6 {[%clk 0:02:52.5]} 13. Rd1 {[%clk 0:02:33.7]} 13... Nc6 {[%clk 0:02:49.7]}
14. Qd3 {[%clk 0:02:28.3]} 14... O-O {[%clk 0:02:44.8]} 15. a3 {[%clk 0:02:19]}
15... f6 {[%clk 0:02:41.6]} 16. exf6 {[%clk 0:02:14.1]} 16... Nxf6 {[%clk
0:02:40.4]} 17. b4 {[%clk 0:02:10.6]} 17... Rad8 {[%clk 0:02:36.3]} 18. Be3
{[%clk 0:02:08.1]} 18... Qc7 {[%clk 0:02:27.2]} 19. Rac1 {[%clk 0:02:06.9]}
19... Qf7 {[%clk 0:02:18.2]} 20. Qb1 {[%clk 0:01:49.9]} 20... e5 {[%clk
0:02:07]} 21. dxe5 {[%clk 0:01:48.3]} 21... Nxe5 {[%clk 0:02:07.9]} 22. Bd4
{[%clk 0:01:29]} 22... Nc6 {[%clk 0:01:31.4]} 23. Bc5 {[%clk 0:01:26.6]} 23...
Rfe8 {[%clk 0:01:22.4]} 24. Bf3 {[%clk 0:01:22.7]} 24... Ne5 {[%clk 0:01:08.1]}
25. Be2 {[%clk 0:01:22.7]} 25... Ne4 {[%clk 0:01:01.6]} 26. Nxe4 {[%clk
0:01:07.9]} 26... dxe4 {[%clk 0:01:02.5]} 27. Rxd8 {[%clk 0:01:08.2]} 27... Rxd8
{[%clk 0:01:00.4]} 28. Qxe4 {[%clk 0:01:08.8]} 28... Kh8 {[%clk 0:00:51.2]} 29.
Bb6 {[%clk 0:01:04.3]} 29... Re8 {[%clk 0:00:50]} 30. Rc7 {[%clk 0:01:01.2]}
30... Qa2 {[%clk 0:00:33.3]} 31. Bd4 {[%clk 0:00:57.3]} 31... Qe6 {[%clk
0:00:24.9]} 32. Rxg7 {[%clk 0:00:55.9]} 32... Kxg7 {[%clk 0:00:23.8]} 33. f4
{[%clk 0:00:55.8]} 33... Kg8 {[%clk 0:00:15.9]} 34. Bxe5 {[%clk 0:00:55]} 34...
Rc8 {[%clk 0:00:14.8]} 35. Bf3 {[%clk 0:00:54.3]} 35... Rc1+ {[%clk 0:00:13.9]}
36. Kh2 {[%clk 0:00:54.2]} 36... Rc8 {[%clk 0:00:10.8]} 37. Bg4 {[%clk
0:00:53.1]} 37... Qc6 {[%clk 0:00:10.3]} 38. Qxc6 {[%clk 0:00:49.3]} 38... Rxc6
{[%clk 0:00:11.2]} 39. Bf3 {[%clk 0:00:50]} 39... Re6 {[%clk 0:00:10.8]} 40. Bd5
{[%clk 0:00:49.5]} 1-0

[Event "*** Titled Tuesday Blitz"]
[Site "Chess.com"]
[Date "2020.04.28"]
[Round "1"]
[White "Anaj14"]
[Black "matein28"]
[Result "0-1"]
[WhiteElo "2165"]
[BlackElo "2530"]
[TimeControl "180+1"]
[EndTime "10:06:37 PDT"]
[Termination "matein28 won by resignation"]

1. Nf3 {[%clk 0:02:59.4]} 1... d5 {[%clk 0:02:52.1]} 2. c4 {[%clk 0:02:58.8]}
2... c6 {[%clk 0:02:51.5]} 3. b3 {[%clk 0:02:58.4]} 3... Nf6 {[%clk 0:02:51.1]}
4. Bb2 {[%clk 0:02:58.7]} 4... e6 {[%clk 0:02:49.4]} 5. g3 {[%clk 0:02:57.6]}
5... Nbd7 {[%clk 0:02:49.2]} 6. Bg2 {[%clk 0:02:58]} 6... Be7 {[%clk 0:02:48.9]}
7. O-O {[%clk 0:02:58.2]} 7... O-O {[%clk 0:02:48.1]} 8. d3 {[%clk 0:02:58.3]}
8... b6 {[%clk 0:02:46.9]} 9. a3 {[%clk 0:02:58.2]} 9... Bb7 {[%clk 0:02:46.7]}
10. Nbd2 {[%clk 0:02:58]} 10... c5 {[%clk 0:02:42.9]} 11. e3 {[%clk 0:02:57.2]}
11... Rc8 {[%clk 0:02:35.4]} 12. Qc2 {[%clk 0:02:56.8]} 12... a6 {[%clk
0:02:34.7]} 13. Rac1 {[%clk 0:02:56.6]} 13... Qc7 {[%clk 0:02:35.1]} 14. Qb1
{[%clk 0:02:57]} 14... Qb8 {[%clk 0:02:35.4]} 15. Qa1 {[%clk 0:02:57.1]} 15...
Qa8 {[%clk 0:02:35.9]} 16. Rfe1 {[%clk 0:02:54.2]} 16... b5 {[%clk 0:02:35.6]}
17. d4 {[%clk 0:02:50.4]} 17... dxc4 {[%clk 0:02:31.7]} 18. bxc4 {[%clk
0:02:49.9]} 18... cxd4 {[%clk 0:02:31.5]} 19. Bxd4 {[%clk 0:02:45.2]} 19... Rfd8
{[%clk 0:02:24.4]} 20. Nh4 {[%clk 0:02:31.8]} 20... Bxg2 {[%clk 0:02:23]} 21.
Nxg2 {[%clk 0:02:31.9]} 21... Nc5 {[%clk 0:02:19.1]} 22. cxb5 {[%clk 0:02:25.4]}
22... Nd3 {[%clk 0:02:00.7]} 23. Rxc8 {[%clk 0:02:23.3]} 23... Rxc8 {[%clk
0:02:01.3]} 24. Rf1 {[%clk 0:02:12]} 24... axb5 {[%clk 0:01:58.4]} 25. Nf4
{[%clk 0:01:52.2]} 25... Nxf4 {[%clk 0:01:50.5]} 26. gxf4 {[%clk 0:01:45.9]}
26... Qxa3 {[%clk 0:01:46]} 27. Bxf6 {[%clk 0:01:43.3]} 27... gxf6 {[%clk
0:01:44.4]} 28. Ne4 {[%clk 0:01:36.5]} 28... Qxa1 {[%clk 0:01:38.8]} 29. Rxa1
{[%clk 0:01:37.4]} 29... f5 {[%clk 0:01:36.1]} 30. Nd2 {[%clk 0:01:29.6]} 30...
Rc2 {[%clk 0:01:34.1]} 31. Nf3 {[%clk 0:01:27.7]} 31... Bf6 {[%clk 0:01:29.1]}
32. Ra8+ {[%clk 0:01:27.4]} 32... Kg7 {[%clk 0:01:28.7]} 33. Rb8 {[%clk
0:01:27.7]} 33... Rc1+ {[%clk 0:01:27.7]} 34. Kg2 {[%clk 0:01:27.7]} 34... Rb1
{[%clk 0:01:28.1]} 35. Rb7 {[%clk 0:01:25]} 35... b4 {[%clk 0:01:26.9]} 36. Ne5
{[%clk 0:01:19.6]} 36... Bxe5 {[%clk 0:01:26.3]} 37. fxe5 {[%clk 0:01:20.5]}
37... b3 {[%clk 0:01:25.5]} 38. Kf3 {[%clk 0:01:19.2]} 38... Kg6 {[%clk
0:01:25.6]} 39. h4 {[%clk 0:01:17.2]} 39... b2 {[%clk 0:01:15.4]} 40. Rb4 {[%clk
0:01:14.9]} 40... Kh5 {[%clk 0:01:13.8]} 41. Kg2 {[%clk 0:01:13.7]} 41... h6
{[%clk 0:01:11.4]} 42. Kh2 {[%clk 0:01:06.7]} 42... Kg6 {[%clk 0:01:11.6]} 43.
Kg2 {[%clk 0:01:05.2]} 43... Kg7 {[%clk 0:01:10.4]} 44. Rb7 {[%clk 0:01:02.3]}
44... Kg6 {[%clk 0:01:10.9]} 45. Rb4 {[%clk 0:01:00.4]} 45... f6 {[%clk
0:01:11.3]} 46. f4 {[%clk 0:00:53.6]} 46... fxe5 {[%clk 0:01:08.6]} 47. fxe5
{[%clk 0:00:53.8]} 47... Kf7 {[%clk 0:01:09.4]} 48. Rb7+ {[%clk 0:00:51.9]}
48... Ke8 {[%clk 0:01:09.2]} 49. Kh2 {[%clk 0:00:51.9]} 49... Kd8 {[%clk
0:01:09.5]} 50. Kg2 {[%clk 0:00:50.8]} 50... Kc8 {[%clk 0:01:10]} 51. Rb5 {[%clk
0:00:50.3]} 51... Kc7 {[%clk 0:01:10.5]} 52. Kf2 {[%clk 0:00:45.1]} 52... Rh1
{[%clk 0:01:05.8]} 53. Kg2 {[%clk 0:00:31]} 53... b1=Q {[%clk 0:01:05.5]} 0-1

[Event "*** Titled Tuesday Blitz"]
[Site "Chess.com"]
[Date "2020.04.28"]
[Round "1"]
[White "Quiet_Desperation"]
[Black "AshotParvanyan"]
[Result "0-1"]
[WhiteElo "1798"]
[BlackElo "2473"]
[TimeControl "180+1"]
[EndTime "10:06:38 PDT"]
[Termination "AshotParvanyan won by resignation"]

1. e4 {[%clk 0:03:00.3]} 1... e6 {[%clk 0:02:59.4]} 2. d4 {[%clk 0:02:58.8]}
2... d5 {[%clk 0:02:59.7]} 3. Nc3 {[%clk 0:02:59.3]} 3... Bb4 {[%clk 0:02:58.8]}
4. e5 {[%clk 0:02:59.6]} 4... Ne7 {[%clk 0:02:58]} 5. Nf3 {[%clk 0:02:58.6]}
5... b6 {[%clk 0:02:52.4]} 6. Bb5+ {[%clk 0:02:54.1]} 6... c6 {[%clk 0:02:51.3]}
7. Bd3 {[%clk 0:02:50.7]} 7... Ba6 {[%clk 0:02:51.4]} 8. O-O {[%clk 0:02:50.6]}
8... c5 {[%clk 0:02:36.3]} 9. dxc5 {[%clk 0:02:45.1]} 9... bxc5 {[%clk
0:02:31.4]} 10. Bxa6 {[%clk 0:02:20.7]} 10... Nxa6 {[%clk 0:02:32.3]} 11. Bg5
{[%clk 0:02:20.3]} 11... h6 {[%clk 0:02:30.1]} 12. Bh4 {[%clk 0:02:20]} 12...
O-O {[%clk 0:02:25.6]} 13. Ne2 {[%clk 0:02:14.2]} 13... Qc7 {[%clk 0:02:10.9]}
14. c3 {[%clk 0:02:13.4]} 14... Ba5 {[%clk 0:02:10.3]} 15. Qa4 {[%clk
0:01:58.1]} 15... Nf5 {[%clk 0:01:51.8]} 16. Bg3 {[%clk 0:01:46.8]} 16... Nb8
{[%clk 0:01:44]} 17. Bf4 {[%clk 0:01:10.4]} 17... Bb6 {[%clk 0:01:37.1]} 18. Ng3
{[%clk 0:01:07.7]} 18... Nxg3 {[%clk 0:01:29.5]} 19. hxg3 {[%clk 0:01:04.8]}
19... Nd7 {[%clk 0:01:19.3]} 20. g4 {[%clk 0:01:05]} 20... c4 {[%clk 0:01:18]}
21. Qc2 {[%clk 0:01:01.1]} 21... Nc5 {[%clk 0:01:17.2]} 22. Rae1 {[%clk
0:00:59.3]} 22... Nd3 {[%clk 0:01:16.5]} 23. Bg3 {[%clk 0:00:55.5]} 23... Nxe1
{[%clk 0:01:11.3]} 24. Rxe1 {[%clk 0:00:55.4]} 24... Rad8 {[%clk 0:00:26]} 25.
Nd4 {[%clk 0:00:54.8]} 25... Bxd4 {[%clk 0:00:25.2]} 26. cxd4 {[%clk 0:00:54.9]}
26... c3 {[%clk 0:00:24.2]} 27. bxc3 {[%clk 0:00:53.4]} 27... Rc8 {[%clk
0:00:24]} 28. Re3 {[%clk 0:00:49.9]} 28... Qc4 {[%clk 0:00:24.3]} 29. Qd2 {[%clk
0:00:46.3]} 29... Rb8 {[%clk 0:00:22.7]} 30. f4 {[%clk 0:00:37.1]} 30... Rb1+
{[%clk 0:00:22.8]} 31. Re1 {[%clk 0:00:36.7]} 31... Rfb8 {[%clk 0:00:21.4]} 32.
f5 {[%clk 0:00:34.6]} 32... Rxe1+ {[%clk 0:00:18.9]} 33. Qxe1 {[%clk 0:00:32.5]}
33... Qd3 {[%clk 0:00:19]} 34. f6 {[%clk 0:00:31]} 34... Rb1 {[%clk 0:00:17.9]}
0-1

[Event "*** Titled Tuesday Blitz"]
[Site "Chess.com"]
[Date "2020.04.28"]
[Round "1"]
[White "GM_dmitrij"]
[Black "FROGGY64"]
[Result "1-0"]
[WhiteElo "2999"]
[BlackElo "2463"]
[TimeControl "180+1"]
[EndTime "10:06:39 PDT"]
[Termination "GM_dmitrij won by checkmate"]

1. e4 {[%clk 0:03:00.7]} 1... c6 {[%clk 0:02:54.8]} 2. d4 {[%clk 0:02:59.4]}
2... d5 {[%clk 0:02:54.9]} 3. e5 {[%clk 0:03:00]} 3... Bf5 {[%clk 0:02:54.4]} 4.
h4 {[%clk 0:03:00]} 4... h5 {[%clk 0:02:51.2]} 5. c4 {[%clk 0:02:59.4]} 5... e6
{[%clk 0:02:51]} 6. Nc3 {[%clk 0:02:59.6]} 6... Nd7 {[%clk 0:02:49.8]} 7. Nge2
{[%clk 0:02:56.5]} 7... Ne7 {[%clk 0:02:47.8]} 8. Ng3 {[%clk 0:02:56.5]} 8...
Bg6 {[%clk 0:02:47.5]} 9. Bg5 {[%clk 0:02:56.6]} 9... Qb6 {[%clk 0:02:46.5]} 10.
Rc1 {[%clk 0:02:56.6]} 10... Qxb2 {[%clk 0:02:45.2]} 11. Bd3 {[%clk 0:02:51.6]}
11... Bxd3 {[%clk 0:02:37.5]} 12. Qxd3 {[%clk 0:02:52.5]} 12... dxc4 {[%clk
0:02:33.4]} 13. Qxc4 {[%clk 0:02:51.6]} 13... Nb6 {[%clk 0:02:33.4]} 14. Qd3
{[%clk 0:02:50.5]} 14... Ned5 {[%clk 0:02:33.5]} 15. O-O {[%clk 0:02:49.5]}
15... Nxc3 {[%clk 0:02:31.2]} 16. Rxc3 {[%clk 0:02:49.5]} 16... Qxa2 {[%clk
0:02:28.6]} 17. f4 {[%clk 0:02:21.9]} 17... Bb4 {[%clk 0:02:18.6]} 18. Rb3
{[%clk 0:02:15.4]} 18... Nd5 {[%clk 0:02:14.6]} 19. f5 {[%clk 0:02:06.4]} 19...
exf5 {[%clk 0:01:52.4]} 20. Nxf5 {[%clk 0:01:52.4]} 20... Kd7 {[%clk 0:01:30.2]}
21. Ne3 {[%clk 0:01:23]} 21... Nxe3 {[%clk 0:01:09.6]} 22. Bxe3 {[%clk 0:01:23]}
22... a5 {[%clk 0:01:01.8]} 23. Rxf7+ {[%clk 0:01:20.5]} 23... Kc8 {[%clk
0:01:01.8]} 24. d5 {[%clk 0:00:48.9]} 24... Rd8 {[%clk 0:00:58.4]} 25. d6 {[%clk
0:00:45.6]} 25... Qa1+ {[%clk 0:00:56.4]} 26. Kh2 {[%clk 0:00:29.9]} 26... Qxe5+
{[%clk 0:00:55.4]} 27. Bf4 {[%clk 0:00:30.3]} 27... Qd5 {[%clk 0:00:55.7]} 28.
Qh3+ {[%clk 0:00:15.9]} 28... Kb8 {[%clk 0:00:53.7]} 29. d7+ {[%clk 0:00:09.2]}
29... Ka7 {[%clk 0:00:53.6]} 30. Rxg7 {[%clk 0:00:07.3]} 30... Qxb3 {[%clk
0:00:49.4]} 31. Qxb3 {[%clk 0:00:06.3]} 31... Rf8 {[%clk 0:00:46.9]} 32. Be3+
{[%clk 0:00:06.4]} 32... Ka6 {[%clk 0:00:45.4]} 33. Qc4+ {[%clk 0:00:06.5]}
33... b5 {[%clk 0:00:43.7]} 34. Qxc6# {[%clk 0:00:06.7]} 1-0

[Event "*** Titled Tuesday Blitz"]
[Site "Chess.com"]
[Date "2020.04.28"]
[Round "1"]
[White "doctorcristian"]
[Black "Chesswizard_2007"]
[Result "1-0"]
[WhiteElo "2320"]
[BlackElo "2612"]
[TimeControl "180+1"]
[EndTime "10:06:39 PDT"]
[Termination "doctorcristian won on time"]

1. d4 {[%clk 0:02:50.5]} 1... Nf6 {[%clk 0:02:59.1]} 2. Nc3 {[%clk 0:02:51.1]}
2... g6 {[%clk 0:02:59.6]} 3. Bf4 {[%clk 0:02:51.2]} 3... d5 {[%clk 0:02:58.7]}
4. Qd2 {[%clk 0:02:51.4]} 4... a6 {[%clk 0:02:58]} 5. Bh6 {[%clk 0:02:51.3]}
5... Nc6 {[%clk 0:02:56]} 6. Bxf8 {[%clk 0:02:49.9]} 6... Kxf8 {[%clk
0:02:56.2]} 7. e3 {[%clk 0:02:50.6]} 7... Kg7 {[%clk 0:02:55.9]} 8. f3 {[%clk
0:02:50.8]} 8... h5 {[%clk 0:02:54.6]} 9. h4 {[%clk 0:02:50.1]} 9... e5 {[%clk
0:02:54.7]} 10. O-O-O {[%clk 0:02:49.2]} 10... exd4 {[%clk 0:02:54.7]} 11. exd4
{[%clk 0:02:48.5]} 11... Bf5 {[%clk 0:02:55.4]} 12. a3 {[%clk 0:02:43.9]} 12...
b5 {[%clk 0:02:54.4]} 13. Nce2 {[%clk 0:02:42]} 13... a5 {[%clk 0:02:52.4]} 14.
Ng3 {[%clk 0:02:41.7]} 14... Bd7 {[%clk 0:02:35.8]} 15. Bxb5 {[%clk 0:02:40.6]}
15... Qb8 {[%clk 0:02:36.3]} 16. Bxc6 {[%clk 0:02:36.8]} 16... Bxc6 {[%clk
0:02:37.2]} 17. Nf5+ {[%clk 0:02:34.8]} 17... Kf8 {[%clk 0:02:30.7]} 18. Qg5
{[%clk 0:02:33.2]} 18... Qd8 {[%clk 0:02:28.9]} 19. Ne3 {[%clk 0:02:30.5]} 19...
Qd6 {[%clk 0:02:28.7]} 20. Ne2 {[%clk 0:02:29]} 20... Rb8 {[%clk 0:02:28.1]} 21.
Rd3 {[%clk 0:02:25.6]} 21... a4 {[%clk 0:02:26.8]} 22. Qf4 {[%clk 0:02:24.7]}
22... Qe7 {[%clk 0:02:23]} 23. Re1 {[%clk 0:02:23.1]} 23... Kg7 {[%clk
0:02:21.8]} 24. Qe5 {[%clk 0:02:21.6]} 24... Qd7 {[%clk 0:02:13.6]} 25. Qg5
{[%clk 0:02:15.5]} 25... Rhe8 {[%clk 0:02:08.8]} 26. Ng3 {[%clk 0:02:14.6]}
26... Nh7 {[%clk 0:01:49.8]} 27. Nxh5+ {[%clk 0:02:04.6]} 27... Kh8 {[%clk
0:01:45.2]} 28. Nf6 {[%clk 0:02:02.6]} 28... Nxg5 {[%clk 0:01:33.7]} 29. Nxd7
{[%clk 0:02:02.1]} 29... Bxd7 {[%clk 0:01:34.6]} 30. hxg5 {[%clk 0:02:02.2]}
30... Kg7 {[%clk 0:01:32.1]} 31. Kd2 {[%clk 0:02:00.3]} 31... Rh8 {[%clk
0:01:23.4]} 32. Nxd5 {[%clk 0:01:58.1]} 32... Rxb2 {[%clk 0:01:23.2]} 33. Nf6
{[%clk 0:01:52.7]} 33... Bf5 {[%clk 0:01:21]} 34. Rc3 {[%clk 0:01:52.6]} 34...
Rd8 {[%clk 0:01:19.6]} 35. d5 {[%clk 0:01:48.2]} 35... Ra2 {[%clk 0:01:05]} 36.
Rh1 {[%clk 0:01:46.5]} 36... Rh8 {[%clk 0:00:58.5]} 37. Rxh8 {[%clk 0:01:43.5]}
37... Kxh8 {[%clk 0:00:59.4]} 38. Rxc7 {[%clk 0:01:42.7]} 38... Rxa3 {[%clk
0:00:59.1]} 39. g4 {[%clk 0:01:40.3]} 39... Rxf3 {[%clk 0:00:51.2]} 40. gxf5
{[%clk 0:01:37]} 40... Kg7 {[%clk 0:00:51.5]} 41. Rc8 {[%clk 0:01:32.9]} 41...
Rd3+ {[%clk 0:00:41.4]} 42. Kxd3 {[%clk 0:01:30.7]} 1-0

[Event "*** Titled Tuesday Blitz"]
[Site "Chess.com"]
[Date "2020.04.28"]
[Round "1"]
[White "Kildepiotr"]
[Black "Pawnpusherschessaccademy"]
[Result "1-0"]
[WhiteElo "2560"]
[BlackElo "2221"]
[TimeControl "180+1"]
[EndTime "10:06:39 PDT"]
[Termination "Kildepiotr won by resignation"]

1. Nf3 {[%clk 0:02:58.4]} 1... d5 {[%clk 0:02:59.8]} 2. g3 {[%clk 0:02:58.3]}
2... e6 {[%clk 0:02:59.8]} 3. Bg2 {[%clk 0:02:58.5]} 3... Nf6 {[%clk 0:03:00.4]}
4. O-O {[%clk 0:02:59]} 4... Be7 {[%clk 0:03:01.3]} 5. d3 {[%clk 0:02:59.7]}
5... O-O {[%clk 0:03:02.2]} 6. Nbd2 {[%clk 0:03:00.3]} 6... c5 {[%clk
0:03:02.6]} 7. e4 {[%clk 0:03:00.6]} 7... Nc6 {[%clk 0:03:03.1]} 8. Qe2 {[%clk
0:03:00.8]} 8... b5 {[%clk 0:03:02.9]} 9. e5 {[%clk 0:03:00.2]} 9... Nd7 {[%clk
0:03:02.6]} 10. c3 {[%clk 0:03:00.4]} 10... Bb7 {[%clk 0:03:01.8]} 11. h4 {[%clk
0:02:58.9]} 11... Qc7 {[%clk 0:03:01]} 12. Re1 {[%clk 0:02:58.1]} 12... Rfc8
{[%clk 0:03:01.4]} 13. h5 {[%clk 0:02:57.6]} 13... h6 {[%clk 0:03:01.3]} 14. Nf1
{[%clk 0:02:57.1]} 14... Bf8 {[%clk 0:03:00.9]} 15. Bf4 {[%clk 0:02:56.5]} 15...
Qd8 {[%clk 0:03:00.4]} 16. g4 {[%clk 0:02:51.3]} 16... a5 {[%clk 0:02:23.2]} 17.
g5 {[%clk 0:02:47.2]} 17... Ne7 {[%clk 0:02:06.3]} 18. gxh6 {[%clk 0:02:45.6]}
18... gxh6 {[%clk 0:02:07.2]} 19. Qd2 {[%clk 0:02:42.3]} 19... Nf5 {[%clk
0:02:07.2]} 20. Bh3 {[%clk 0:02:40.3]} 20... d4 {[%clk 0:01:44.6]} 21. N1h2
{[%clk 0:02:31.6]} 21... Nh4 {[%clk 0:01:30.8]} 22. Nxh4 {[%clk 0:02:23.2]}
22... Qxh4 {[%clk 0:01:29.3]} 23. Bg4 {[%clk 0:02:21.9]} 23... Kh7 {[%clk
0:01:15.1]} 24. Bg3 {[%clk 0:02:21.1]} 24... Qe7 {[%clk 0:01:13.2]} 25. f4
{[%clk 0:02:19.3]} 25... Nb6 {[%clk 0:01:12.7]} 26. f5 {[%clk 0:02:12.8]} 26...
Nd5 {[%clk 0:01:12.3]} 27. f6 {[%clk 0:02:08.4]} 27... Qc7 {[%clk 0:01:09.5]}
28. Nf1 {[%clk 0:01:59.1]} 28... Qc6 {[%clk 0:01:07.5]} 29. Re4 {[%clk
0:01:52.5]} 29... dxc3 {[%clk 0:01:00.4]} 30. bxc3 {[%clk 0:01:52]} 30... c4
{[%clk 0:01:00.5]} 31. Rc1 {[%clk 0:01:46]} 31... Ba3 {[%clk 0:00:49.4]} 32. Rc2
{[%clk 0:01:43.8]} 32... Rg8 {[%clk 0:00:49.3]} 33. Kh2 {[%clk 0:01:37.4]} 33...
Rg5 {[%clk 0:00:41.3]} 34. Bh4 {[%clk 0:01:30.7]} 34... Rag8 {[%clk 0:00:37.4]}
35. Bxg5 {[%clk 0:01:30.7]} 35... Rxg5 {[%clk 0:00:37.8]} 36. Bf3 {[%clk
0:01:26.9]} 36... cxd3 {[%clk 0:00:31.9]} 37. Qxd3 {[%clk 0:01:25.7]} 37... Kh8
{[%clk 0:00:29.9]} 38. Rg2 {[%clk 0:01:10.5]} 38... Rxg2+ {[%clk 0:00:27.5]} 39.
Bxg2 {[%clk 0:01:10.2]} 39... Nxc3 {[%clk 0:00:27.5]} 40. Qd8+ {[%clk
0:01:02.4]} 40... Kh7 {[%clk 0:00:25.6]} 41. Rg4 {[%clk 0:01:01.7]} 1-0